bitfinex-derivatives/quotes_SOLF0:USTF0_20240906
["timestamp","ask_amount","ask_price","bid_price","bid_amount"]
[1725643291385,3.9275,127.39,127.36,3.9283]
[1725643294883,5.2753532,127.43,127.29,104.7623207]
[1725643295078,37.72,127.39,127.31,37.72]
[1725643295480,3.9285,127.36,127.33,3.9293]
[1725643296082,37.72,127.41,127.31,37.72]
[1725643296279,37.72,127.41,127.33,37.72]
[1725643297094,3.9281,127.38,127.33,37.72]
[1725643297587,3.9282,127.37,127.34,3.9289]
[1725643297787,37.72,127.41,127.31,37.72]
[1725643298094,3.9282,127.37,127.33,3.929]
[1725643298399,37.72,127.41,127.31,37.72]
[1725643298893,37.72,127.39,127.32,3.9296]
[1725643299087,2.7008,127.38,127.31,37.72]
[1725643299588,2.7008,127.38,127.29,104.7623207]
[1725643299889,2.7008,127.38,127.29,142.4823207]
[1725643300087,37.72,127.37,127.31,3.9298]
[1725643300288,39.0094,127.37,127.31,3.9298]
[1725643301196,3.9292,127.34,127.31,3.9298]
[1725643302393,3.93935209,127.35,127.31,3.9298]
[1725643302588,1.2894,127.37,127.31,3.9298]
[1725643302992,3.85247485,127.36,127.32,3.9296]
[1725643303292,1.2894,127.37,127.29,104.7623207]
[1725643303495,3.9276,127.39,127.36,3.9282]
[1725643303786,92.08464843,127.46,127.33,37.72]
[1725643303787,2.648,127.42,127.34,4.00107031]
[1725643303993,40.368,127.42,127.33,37.72]
[1725643304493,44.25826176,127.42,127.33,37.72]
[1725643304690,3.9278,127.39,127.35,3.9285]
[1725643305093,44.25826176,127.42,127.35,3.9285]
[1725643305791,3.9279,127.38,127.35,3.9285]
[1725643305988,37.72,127.4,127.32,37.72]
[1725643306189,1.3464,127.39,127.3,37.72]
[1725643306495,3.9285,127.36,127.33,3.9292]
[1725643306796,1.3464,127.39,127.31,37.72]
[1725643306994,3.9279,127.38,127.35,3.9285]
[1725643307994,1.3464,127.39,127.29,104.7623207]
[1725643308200,1.3464,127.39,127.31,37.72]
[1725643309092,3.9282,127.37,127.33,3.9292]
[1725643309492,3.9283,127.37,127.33,3.9292]
[1725643309697,3.9283,127.37,127.34,3.9289]
[1725643310697,3.9281,127.37,127.32,30.19]
[1725643310894,30.19,127.37,127.3,30.19]
[1725643311101,3.9298,127.32,127.29,104.7623207]
[1725643311396,3.8782922,127.34,127.29,104.7623207]
[1725643311598,3.9295,127.33,127.29,108.6927207]
[1725643312492,3.8782922,127.34,127.29,104.7623207]
[1725643312904,2.717,127.36,127.29,104.7623207]
[1725643313094,3.9292,127.34,127.3,3.9301]
[1725643313295,7.79766677,127.34,127.3,3.9301]
[1725643313798,3.9294,127.33,127.3,3.9301]
[1725643313998,3.9294,127.33,127.29,108.6927207]
[1725643314201,3.9297,127.32,127.29,104.7623207]
[1725643314799,3.9301,127.31,127.25,37.77]
[1725643315105,3.9301,127.31,127.26,3.85789596]
[1725643315306,3.86846677,127.34,127.28,3.9306]
[1725643315504,3.9298,127.32,127.28,3.9306]
[1725643315701,7.77747533,127.32,127.28,3.9306]
[1725643315898,3.84767533,127.32,127.27,7.93395034]
[1725643316098,37.77,127.35,127.27,4.00295034]
[1725643316295,3.86064767,127.35,127.29,37.77]
[1725643316499,3.86064767,127.35,127.29,41.66091647]
[1725643316904,3.9295,127.33,127.29,41.66091647]
[1725643317305,3.9295,127.33,127.29,37.77]
[1725643317511,3.9295,127.33,127.29,41.7003]
[1725643318008,3.9297,127.32,127.29,41.7003]
[1725643318206,3.84099261,127.35,127.3,3.93]
[1725643318800,3.9295,127.33,127.29,41.7004]
[1725643319005,3.99265032,127.32,127.27,37.77]
[1725643319203,37.77,127.35,127.25,37.77]
[1725643319411,41.79528029,127.35,127.25,37.77]
[1725643319604,4.02528029,127.35,127.27,37.77]
[1725643319802,3.9298,127.32,127.28,3.9325011]
[1725643320308,3.87431753,127.33,127.25,37.77]
[1725643320510,40.487,127.36,127.27,7.79116478]
[1725643320808,40.487,127.36,127.27,7.83637498]
[1725643321208,3.9301,127.31,127.27,7.83637498]
[1725643321506,3.9301,127.31,127.28,3.9307]
[1725643322512,3.83893564,127.33,127.27,3.931]
[1725643322705,37.77,127.35,127.27,7.81947029]
[1725643322905,41.73513107,127.35,127.27,3.931]
[1725643323111,3.9304,127.3,127.27,3.931]
[1725643323305,3.9304,127.3,127.27,7.81553897]
[1725643323505,3.9304,127.3,127.27,3.931]
[1725643323815,3.9304,127.3,127.27,7.91696707]
[1725643324111,37.77,127.31,127.22,37.77]
[1725643324309,1.3112,127.3,127.22,37.77]
[1725643324512,3.9313,127.27,127.24,3.9319]
[1725643324714,1.3112,127.3,127.22,37.77]
[1725643324907,1.4115,127.33,127.25,37.77]
[1725643325101,3.9298,127.32,127.29,3.9303]
[1725643325313,5.2972475,127.35,127.28,41.61326009]
[1725643326315,5.2972475,127.35,127.29,3.9304]
[1725643327102,5.2972475,127.35,127.28,3.9307]
[1725643327103,3.9299,127.32,127.28,3.9307]
[1725643327308,3.9299,127.32,127.29,3.87588425]
[1725643327805,3.9299,127.32,127.29,3.9305]
[1725643329311,5.2972475,127.35,127.29,3.9305]
[1725643329504,5.2972475,127.35,127.27,37.77]
[1725643329911,3.93,127.31,127.28,4.006024]
[1725643330310,3.93,127.31,127.28,3.9306]
[1725643330618,3.93,127.31,127.28,7.80500622]
[1725643330812,3.93,127.31,127.29,3.9305]
[1725643331416,37.77,127.38,127.31,3.9298]
[1725643331716,41.75486768,127.38,127.29,37.77]
[1725643331918,41.75486768,127.38,127.27,4.0229985]
[1725643331919,37.77,127.36,127.28,3.9307]
[1725643332217,37.77,127.36,127.25,37.77]
[1725643332408,3.9301,127.31,127.28,3.9306]
[1725643333118,37.77,127.34,127.25,37.77]
[1725643333412,4.0468,127.33,127.23,37.77]
[1725643333617,3.9307,127.29,127.26,3.9313]
[1725643333819,3.9307,127.29,127.23,37.77]
[1725643334011,3.9307,127.29,127.25,30.18]
[1725643334206,34.2268,127.33,127.25,30.18]
[1725643334512,3.9306,127.29,127.25,30.18]
[1725643335418,3.9303,127.3,127.28,3.9309]
[1725643336117,3.9301,127.31,127.29,3.9305]
[1725643337212,3.9301,127.31,127.28,3.9307]
[1725643337414,30.18,127.31,127.22,3.87951653]
[1725643337614,30.18,127.31,127.24,3.9319]
[1725643338010,30.18,127.31,127.23,3.99965438]
[1725643338222,30.18,127.31,127.25,3.9318]
[1725643339212,3.9311,127.28,127.25,3.9318]
[1725643339415,30.18,127.31,127.25,3.9318]
[1725643339815,30.18,127.3,127.21,1.2861]
[1725643340130,30.18,127.3,127.21,5.234388]
[1725643340414,30.18,127.3,127.22,30.18]
[1725643340821,3.9317,127.26,127.23,3.9322]
[1725643341820,3.9319,127.25,127.22,34.1126]
[1725643342122,4.0468,127.33,127.22,30.18]
[1725643342416,4.0468,127.33,127.28,3.9307]
[1725643342617,4.0468,127.33,127.25,30.18]
[1725643342818,3.9304,127.3,127.27,3.9309]
[1725643343014,2.6733,127.33,127.27,30.18]
[1725643343221,30.18,127.37,127.29,30.18]
[1725643343418,2.7303,127.39,127.29,30.18]
[1725643343419,34.2026,127.39,127.3,30.18]
[1725643343624,34.2026,127.39,127.32,30.18]
[1725643343826,8.0100598,127.39,127.32,30.18]
[1725643344019,3.9285,127.36,127.33,3.9291]
[1725643345119,3.9281,127.37,127.34,3.9288]
[1725643345722,3.9281,127.37,127.33,3.9292]
[1725643346026,3.9284,127.36,127.3,41.8387]
[1725643346321,3.9284,127.36,127.32,3.9294]
[1725643347327,3.9284,127.36,127.33,3.9293]
[1725643348118,8.0100598,127.39,127.3,41.8387]
[1725643348919,8.0100598,127.39,127.3,40.5094]
[1725643349125,37.75,127.38,127.3,40.5094]
[1725643350022,3.9281,127.36,127.32,3.9291]
[1725643350620,3.9281,127.36,127.3,40.5094]
[1725643350824,8.0100598,127.39,127.3,40.5094]
[1725643351127,8.0100598,127.39,127.33,3.9288]
[1725643351333,3.9279,127.37,127.33,3.9288]
[1725643351626,8.0100598,127.39,127.33,3.9288]
[1725643351827,3.9279,127.37,127.33,3.9288]
[1725643352029,37.75,127.42,127.32,37.75]
[1725643352326,41.9371,127.44,127.34,37.75]
[1725643352530,41.9371,127.44,127.37,3.9275]
[1725643352726,41.9371,127.44,127.34,37.75]
[1725643353122,3.9269,127.4,127.36,3.9278]
[1725643353317,3.9269,127.4,127.36,7.92493492]
[1725643353624,41.9371,127.44,127.36,3.9278]
[1725643353826,41.9371,127.44,127.36,7.90568203]
[1725643354126,3.9272,127.39,127.36,7.90568203]
[1725643354620,41.9371,127.44,127.34,37.75]
[1725643354828,3.9274,127.38,127.35,3.9281]
[1725643355329,3.9272,127.39,127.36,3.9279]
[1725643355721,3.92680295,127.39,127.34,37.75]
[1725643355921,37.75,127.4,127.31,1.3048]
[1725643356124,3.93238785,127.39,127.31,1.3048]
[1725643356327,3.9284,127.35,127.32,3.9291]
[1725643356527,3.93238785,127.39,127.31,1.3048]
[1725643357025,3.9282,127.36,127.33,3.9288]
[1725643357734,3.9285,127.35,127.32,3.9291]
[1725643359835,3.9285,127.35,127.33,3.9289]
[1725643360530,3.9285,127.35,127.32,3.9291]
[1725643360731,3.9288,127.34,127.31,1.3048]
[1725643361035,37.75,127.4,127.31,1.3048]
[1725643361333,3.9285,127.35,127.32,3.9291]
[1725643361935,3.9286,127.34,127.32,3.9291]
[1725643363242,3.9284,127.35,127.33,3.9289]
[1725643363438,41.62869059,127.4,127.32,37.75]
[1725643363747,3.9282,127.36,127.32,37.75]
[1725643363937,41.62869059,127.4,127.31,1.3048]
[1725643364340,41.62869059,127.4,127.32,3.929]
[1725643364945,41.62869059,127.4,127.31,5.2342]
[1725643365142,41.62869059,127.4,127.31,1.3048]
[1725643365951,4.1871,127.44,127.36,37.75]
[1725643366148,4.1871,127.44,127.38,37.75]
[1725643366454,0.46666465,127.43,127.38,30.16]
[1725643366641,3.9257,127.44,127.4,3.9265]
[1725643366949,2.7382,127.49,127.42,30.16]
[1725643367250,227.0,127.58,127.47,3.9244]
[1725643367441,34.2936,127.54,127.47,3.9244]
[1725643367640,38.22014933,127.54,127.47,3.9244]
[1725643367950,3.9235,127.51,127.47,3.9244]
[1725643368143,30.16,127.53,127.45,34.18676653]
[1725643368350,3.9238,127.5,127.45,4.02676653]
[1725643368546,37.67,127.53,127.45,7.95176653]
[1725643368848,3.9247,127.47,127.42,37.67]
[1725643369051,3.9247,127.47,127.43,4.0003586]
[1725643369358,37.67,127.51,127.43,4.0003586]
[1725643369546,3.9249,127.47,127.42,37.67]
[1725643369852,3.85863833,127.47,127.4,37.67]
[1725643370049,37.67,127.5,127.4,37.67]
[1725643370050,3.9254,127.45,127.4,37.67]
[1725643370754,3.9254,127.45,127.41,3.9262]
[1725643371354,3.9257,127.44,127.41,3.9262]
[1725643371552,3.9713079,127.47,127.38,37.67]
[1725643371754,4.1045,127.46,127.38,37.67]
[1725643371950,3.9261,127.43,127.38,37.67]
[1725643372152,3.9261,127.43,127.39,3.9269]
[1725643373549,3.9261,127.43,127.38,37.67]
[1725643373950,3.88729645,127.45,127.38,37.67]
[1725643374151,3.88729645,127.45,127.39,3.9269]
[1725643374355,3.9261,127.43,127.38,37.67]
[1725643374745,3.98103375,127.44,127.37,109.89124911]
[1725643374945,41.7745,127.46,127.37,109.89124911]
[1725643375153,3.9263,127.42,127.37,109.89124911]
[1725643375360,3.9263,127.42,127.39,3.9269]
[1725643377148,3.9265,127.41,127.39,3.9269]
[1725643377349,3.9265,127.41,127.38,3.9272]
[1725643377660,37.67,127.44,127.37,108.57494911]
[1725643377853,37.67,127.44,127.37,112.50264911]
[1725643378262,37.67,127.44,127.37,108.57494911]
[1725643378455,37.67,127.42,127.35,3.9283]
[1725643379454,3.927,127.4,127.36,7.93483604]
[1725643379663,3.927,127.4,127.36,3.9278]
[1725643380262,3.927,127.4,127.36,7.90890562]
[1725643380457,37.67,127.44,127.35,3.9281]
[1725643380655,37.67,127.44,127.34,37.67]
[1725643380854,8.11373459,127.46,127.38,37.67]
[1725643381160,4.1045,127.46,127.4,37.67]
[1725643381354,2.6851,127.46,127.4,37.67]
[1725643381556,6.6101,127.46,127.43,3.9258]
[1725643381764,6.6101,127.46,127.4,37.67]
[1725643382266,3.925,127.46,127.43,3.9257]
[1725643382656,37.67,127.5,127.42,37.67]
[1725643383864,3.9251,127.46,127.43,3.9258]
[1725643384564,3.9254,127.45,127.42,41.5959]
[1725643384759,3.9254,127.45,127.42,3.9259]
[1725643385967,3.9248,127.47,127.44,3.9255]
[1725643386466,3.9247,127.47,127.44,3.9254]
[1725643386664,2.7893,127.51,127.45,3.9592849]
[1725643386859,2.7893,127.51,127.45,37.67]
[1725643387169,4.0318,127.55,127.49,37.67]
[1725643387569,3.9227,127.54,127.5,3.9235]
[1725643387864,4.0318,127.55,127.5,3.9235]
[1725643388362,3.9228,127.53,127.5,3.9235]
[1725643389265,2.6799,127.55,127.47,1.4176]
[1725643389562,1.3465,127.55,127.47,5.28592729]
[1725643389760,3.9234,127.51,127.48,3.9241]
[1725643389956,3.9234,127.51,127.47,1.4176]
[1725643390163,1.3465,127.55,127.47,1.4176]
[1725643390556,39.0165,127.55,127.47,1.4176]
[1725643390858,0.46581241,127.54,127.47,5.3421]
[1725643391061,0.46581241,127.54,127.46,43.00365177]
[1725643391364,3.924,127.49,127.46,45.60265177]
[1725643392467,3.9238,127.5,127.47,3.9246]
[1725643393562,3.9238,127.5,127.46,41.67805177]
[1725643393563,3.9233,127.52,127.46,41.67805177]
[1725643394170,3.9233,127.52,127.49,3.9239]
[1725643394467,3.9235,127.51,127.46,41.67805177]
[1725643394967,2.6236,127.58,127.5,37.67]
[1725643395276,0.46641509,127.57,127.52,3.923]
[1725643396168,3.9226,127.54,127.48,37.67]
[1725643396470,3.9223,127.55,127.52,3.9229]
[1725643396765,3.9223,127.55,127.49,1.4004]
[1725643396766,227.0,127.66,127.49,1.4004]
[1725643397065,41.7248,127.62,127.52,37.67]
[1725643397264,0.46682637,127.61,127.52,37.67]
[1725643397772,0.46682637,127.61,127.52,41.59703114]
[1725643397967,3.921,127.59,127.52,41.59703114]
[1725643398174,41.7248,127.62,127.52,41.59703114]
[1725643398474,0.46687517,127.61,127.52,41.59703114]
[1725643398661,3.9212,127.59,127.56,3.9217]
[1725643399168,3.9212,127.59,127.54,41.5923]
[1725643399368,3.9215,127.58,127.54,41.5923]
[1725643399570,41.7248,127.62,127.54,41.5923]
[1725643399770,0.46688529,127.61,127.54,37.67]
[1725643400970,0.93376617,127.6,127.54,37.67]
[1725643401277,0.46688302,127.6,127.54,37.67]
[1725643401978,0.46678504,127.59,127.52,41.59703114]
[1725643402160,0.46678504,127.59,127.52,37.67]
[1725643402566,3.9223,127.55,127.52,41.5929]
[1725643402770,0.46688302,127.6,127.52,45.44685373]
[1725643403074,0.46681917,127.59,127.52,37.67]
[1725643403978,3.9228,127.53,127.52,37.67]
[1725643404165,3.87827632,127.55,127.5,41.54827632]
[1725643404368,37.67,127.56,127.44,1.2804]
[1725643404568,3.9245,127.48,127.46,41.557258]
[1725643405965,3.9245,127.48,127.46,34.057258]
[1725643406368,3.90295458,127.52,127.46,34.057258]
[1725643406568,31.571,127.54,127.46,34.057258]
[1725643406766,0.46654433,127.53,127.46,34.057258]
[1725643406970,3.9246,127.47,127.46,34.057258]
[1725643407475,31.571,127.54,127.46,34.057258]
[1725643407476,3.9245,127.48,127.46,34.057258]
[1725643408178,3.9245,127.48,127.46,41.607258]
[1725643408972,3.9241,127.49,127.46,45.531958]
[1725643409167,3.9241,127.49,127.46,41.607258]
[1725643409372,1.401,127.54,127.46,41.607258]
[1725643409768,39.121,127.54,127.43,1.342]
[1725643410073,3.9246,127.48,127.45,3.9252]
[1725643410277,3.82920491,127.54,127.44,37.72]
[1725643410484,1.3332,127.55,127.46,37.72]
[1725643410684,5.17513974,127.55,127.48,37.72]
[1725643410878,1.3332,127.55,127.5,37.72]
[1725643411178,3.9221,127.56,127.52,41.6429]
[1725643411480,1.3334,127.57,127.49,4.146]
[1725643411679,3.9225,127.54,127.51,3.9231]
[1725643411877,3.9225,127.54,127.51,7.83490746]
[1725643412381,3.9225,127.54,127.51,3.9231]
[1725643412581,3.9232,127.52,127.49,8.0698]
[1725643412983,3.9232,127.52,127.5,3.9236]
[1725643413580,3.9235,127.51,127.49,4.146]
[1725643413881,1.3334,127.57,127.5,37.72]
[1725643414087,1.3334,127.57,127.52,37.72]
[1725643414284,1.2931,127.6,127.53,3.97492764]
[1725643414477,5.14325941,127.6,127.53,3.97492764]
[1725643414977,5.14325941,127.6,127.52,37.72]
[1725643415383,5.14325941,127.6,127.52,41.66746294]
[1725643415775,5.14325941,127.6,127.53,3.9225]
[1725643416180,3.9222,127.55,127.52,45.59036294]
[1725643416689,37.72,127.59,127.5,37.72]
[1725643416986,37.72,127.59,127.51,3.97571235]
[1725643417490,3.9231,127.52,127.49,5.3231]
[1725643418189,3.9228,127.53,127.5,3.9235]
[1725643418687,3.9232,127.52,127.49,5.3231]
[1725643418889,7.8425,127.58,127.49,1.3993]
[1725643419085,3.924,127.49,127.46,43.0082]
[1725643419289,3.924,127.49,127.46,39.0835]
[1725643420086,3.924,127.49,127.47,3.9244]
[1725643420284,3.9239,127.5,127.47,3.9244]
[1725643420983,3.9241,127.49,127.46,41.6448]
[1725643421987,3.9252,127.45,127.44,3.94029307]
[1725643422182,37.72,127.53,127.44,3.94029307]
[1725643422383,41.62317452,127.53,127.44,3.94029307]
[1725643423090,3.90317452,127.53,127.44,41.66029307]
[1725643423290,3.90317452,127.53,127.46,37.72]
[1725643423593,3.9233,127.52,127.48,41.6441]
[1725643423793,4.1257,127.54,127.48,45.48752722]
[1725643423993,3.85015941,127.6,127.51,37.72]
[1725643424189,7.8386,127.65,127.51,41.6433]
[1725643424190,2.722,127.58,127.51,41.6433]
[1725643424493,6.64667614,127.58,127.51,41.6433]
[1725643425189,3.9226,127.54,127.51,41.6433]
[1725643425590,6.64667614,127.58,127.51,37.72]
[1725643426288,3.9221,127.56,127.51,37.72]
[1725643426589,6.64667614,127.58,127.51,37.72]
[1725643427888,6.64667614,127.58,127.49,1.2842]
[1725643428090,38.18700229,127.57,127.49,1.2842]
[1725643428282,37.72,127.57,127.49,1.2842]
[1725643428499,3.9229,127.53,127.5,3.9237]
[1725643428696,3.9229,127.53,127.49,1.2842]
[1725643428697,37.72,127.57,127.49,1.2842]
[1725643428895,37.72,127.57,127.48,37.72]
[1725643429191,37.72,127.57,127.45,1.3194]
[1725643429192,3.9239,127.5,127.47,3.9245]
[1725643430202,37.72,127.55,127.46,37.72]
[1725643430894,3.9239,127.5,127.47,3.9246]
[1725643431893,37.72,127.55,127.46,37.72]
[1725643432395,3.924,127.49,127.46,41.6447]
[1725643432799,3.924,127.49,127.46,3.9247]
[1725643432997,3.9245,127.48,127.45,5.3411]
[1725643433399,41.67655127,127.51,127.44,3.90945414]
[1725643433602,3.9245,127.48,127.44,3.9253]
[1725643433905,3.9245,127.48,127.44,7.78844196]
[1725643435403,3.90395947,127.5,127.44,3.9253]
[1725643435404,3.9246,127.47,127.44,3.9253]
[1725643435903,3.9246,127.47,127.45,3.9252]
[1725643436098,3.9244,127.48,127.45,3.9252]
[1725643436406,3.91808861,127.51,127.46,3.9248]
[1725643436701,3.9245,127.48,127.44,3.83645359]
[1725643436896,3.9245,127.48,127.45,3.9251]
[1725643437403,3.9241,127.49,127.46,3.9248]
[1725643438094,3.9238,127.5,127.47,3.9244]
[1725643438304,3.97562625,127.51,127.47,3.9244]
[1725643438493,4.142,127.52,127.44,3.98072975]
[1725643438699,1.2799,127.56,127.48,37.72]
[1725643438997,0.46696309,127.55,127.48,37.72]
[1725643439197,3.9231,127.52,127.49,3.9239]
[1725643439592,1.2799,127.56,127.48,37.72]
[1725643439799,1.2799,127.56,127.48,41.6441]
[1725643439800,3.9235,127.51,127.48,41.6441]
[1725643439991,1.2799,127.56,127.48,37.72]
[1725643440196,3.9235,127.51,127.48,3.9242]
[1725643440398,38.9999,127.56,127.46,37.72]
[1725643441398,38.9999,127.56,127.48,3.9241]
[1725643441794,3.9242,127.49,127.46,3.9249]
[1725643441997,37.72,127.54,127.44,37.72]
[1725643442397,37.72,127.54,127.46,3.9249]
[1725643442594,37.72,127.54,127.42,39.0087]
[1725643442595,37.72,127.52,127.42,39.0087]
[1725643442795,3.9247,127.47,127.43,3.9255]
[1725643442995,3.9247,127.47,127.44,3.88573034]
[1725643443199,3.89083333,127.5,127.42,39.0087]
[1725643443396,3.9246,127.48,127.44,3.9253]
[1725643443599,3.97091101,127.49,127.44,3.9253]
[1725643443805,2.7262,127.51,127.42,42.96587219]
[1725643444008,3.9243,127.49,127.44,37.72]
[1725643444411,6.55933029,127.51,127.44,37.72]
[1725643444603,37.72,127.5,127.42,5.24587219]
[1725643444807,37.72,127.49,127.42,1.2887]
[1725643445305,3.9251,127.46,127.42,9.17589757]
[1725643445704,3.9248,127.47,127.43,3.9256]
[1725643446208,39.05,127.5,127.42,5.24979757]
[1725643446411,39.05,127.5,127.43,3.9258]
[1725643446912,3.925,127.46,127.42,9.17579757]
[1725643447205,37.72,127.49,127.4,39.1342]
[1725643447412,3.9254,127.45,127.41,3.9263]
[1725643447704,3.9254,127.45,127.4,37.72]
[1725643447904,3.9251,127.46,127.4,37.72]
[1725643448513,3.9251,127.46,127.42,3.9259]
[1725643448710,6.55933029,127.51,127.45,37.72]
[1725643448921,1.2949,127.57,127.45,37.72]
[1725643449210,0.4675991,127.56,127.47,37.72]
[1725643449404,3.9229,127.53,127.47,37.72]
[1725643449605,37.72,127.55,127.47,37.72]
[1725643450117,3.9229,127.53,127.49,3.9238]
[1725643450816,37.72,127.55,127.49,3.9238]
[1725643451410,3.923,127.53,127.49,3.9238]
[1725643451907,3.9231,127.52,127.49,3.9238]
[1725643453109,3.9231,127.52,127.47,37.72]
[1725643453110,4.0203,127.57,127.47,37.72]
[1725643453312,0.46776704,127.56,127.51,37.72]
[1725643453514,4.0203,127.57,127.51,37.72]
[1725643453713,2.7254,127.57,127.51,37.72]
[1725643454106,39.0561,127.61,127.51,37.72]
[1725643454413,1.3733,127.62,127.55,37.72]
[1725643454712,3.9203,127.61,127.57,3.9213]
[1725643455805,5.2933,127.62,127.58,3.9211]
[1725643456009,1.3733,127.62,127.55,41.72608935]
[1725643456615,3.9203,127.61,127.57,3.9213]
[1725643457308,3.9201,127.62,127.58,3.9211]
[1725643457517,40.3807,127.65,127.58,3.9211]
[1725643457718,0.48703605,127.64,127.55,41.72608935]
[1725643457909,37.72,127.63,127.56,3.9216]
[1725643458816,0.02,127.64,127.56,3.9216]
[1725643459115,37.72,127.63,127.56,3.9216]
[1725643459309,0.46712404,127.62,127.56,3.9216]
[1725643459816,37.72,127.63,127.56,3.9216]
[1725643460013,3.9208,127.6,127.56,3.9216]
[1725643460519,37.72,127.63,127.56,3.9216]
[1725643460813,0.46715926,127.62,127.56,3.9216]
[1725643461017,3.9211,127.59,127.54,3.8873867]
[1725643461207,3.9211,127.59,127.53,39.0304]
[1725643461517,3.9211,127.59,127.56,3.9216]
[1725643461918,3.9203,127.61,127.55,37.72]
[1725643462219,3.9203,127.61,127.58,3.921]
[1725643463115,4.0033,127.71,127.6,37.72]
[1725643463318,4.0033,127.71,127.64,37.72]
[1725643463319,0.46635313,127.7,127.64,37.72]
[1725643463509,2.6805,127.71,127.64,37.72]
[1725643463715,2.6805,127.71,127.66,37.72]
[1725643463916,2.6805,127.71,127.66,41.55265255]
[1725643464218,2.6805,127.71,127.68,3.9179]
[1725643464219,1.3059,127.71,127.68,3.9179]
[1725643464611,5.2233,127.71,127.67,3.9183]
[1725643465624,0.46618912,127.7,127.61,1.4064]
[1725643465915,0.46642499,127.69,127.61,39.1264]
[1725643466519,4.38452499,127.69,127.65,3.9189]
[1725643466720,0.46642499,127.68,127.65,3.9189]
[1725643467119,1.35,127.7,127.65,3.9189]
[1725643467320,0.466352,127.69,127.65,3.9189]
[1725643467823,0.466352,127.69,127.64,3.9193]
[1725643468324,0.466352,127.69,127.59,1.3838]
[1725643468325,3.9188,127.66,127.62,3.9199]
[1725643468712,3.9188,127.66,127.6,37.72]
[1725643468916,1.2822,127.68,127.62,37.72]
[1725643469818,3.9186,127.67,127.64,3.9192]
[1725643470023,1.35,127.7,127.62,37.72]
[1725643470220,3.9183,127.68,127.65,3.9189]
[1725643470424,1.35,127.7,127.64,37.72]
[1725643470626,0.46634814,127.69,127.64,37.72]
[1725643470819,3.9182,127.68,127.65,3.9188]
[1725643471728,3.9185,127.67,127.64,41.6392]
[1725643472026,3.9185,127.67,127.64,3.9192]
[1725643472724,1.35,127.7,127.62,37.72]
[1725643473524,3.9188,127.66,127.63,3.9195]
[1725643473926,3.9185,127.67,127.64,3.9192]
[1725643474925,3.9188,127.66,127.64,3.9192]
[1725643475129,1.35,127.7,127.64,3.9192]
[1725643475430,3.9185,127.67,127.65,3.919]
[1725643476028,3.919,127.66,127.62,37.72]
[1725643476532,3.919,127.66,127.63,3.9195]
[1725643477129,37.72,127.68,127.6,37.72]
[1725643477434,1.2858,127.67,127.6,37.72]
[1725643477627,3.9199,127.63,127.6,41.6405]
[1725643477932,3.9199,127.63,127.6,37.72]
[1725643478327,3.99776624,127.65,127.6,37.72]
[1725643478632,1.2858,127.67,127.58,41.55029931]
[1725643478633,1.353,127.64,127.58,41.55029931]
[1725643478832,3.9201,127.62,127.59,3.9207]
[1725643479029,5.18711297,127.64,127.59,3.9207]
[1725643479030,1.353,127.64,127.59,3.9207]
[1725643479426,1.353,127.64,127.58,41.73878086]
[1725643479623,5.20671678,127.64,127.58,41.73878086]
[1725643479827,3.9201,127.62,127.58,41.73878086]
[1725643480438,3.9198,127.63,127.58,41.73878086]